bitfinex/quotes_ETHUSD_20250329
["timestamp","ask_amount","ask_price","bid_price","bid_amount"]
[1743273380604,6.94920579,1828.6,1828.4,16.7343]
[1743273380972,0.0473467,1828.6,1828.5,15.64896]
[1743273382510,0.28234484,1829.7,1828.7,0.8208]
[1743273382803,0.28234484,1829.7,1828.6,1.564896]
[1743273382804,3.90185909,1829.4,1829.2,0.8208]
[1743273382990,4.15080427,1829.8,1829.7,5.46537]
[1743273383206,4.15080427,1829.8,1829.7,12.05817]
[1743273383371,2.75843756,1829.8,1829.7,13.810549]
[1743273383775,0.1084373,1830.4,1830.2,5.46379]
[1743273383989,0.1084373,1830.4,1830.3,22.28900971]
[1743273384285,0.1084373,1830.4,1830.3,22.23438]
[1743273385610,0.1084373,1830.4,1830.3,15.95]
[1743273385813,0.1084373,1830.4,1830.3,21.41358]
[1743273385998,0.0084373,1830.4,1830.3,21.41358]
[1743273386401,0.0084373,1830.4,1830.3,15.95]
[1743273386710,0.0084373,1830.4,1830.3,23.554962]
[1743273387296,0.0084373,1830.4,1830.3,24.375762]
[1743273388310,3.0,1831.2,1830.8,0.8208]
[1743273388311,4.53974913,1831.2,1830.8,0.8208]
[1743273388609,3.0,1831.0,1830.9,15.948]
[1743273388982,15.46190913,1831.2,1830.9,15.948]
[1743273389511,3.0,1831.1,1830.9,15.948]
[1743273390074,8.46126,1831.1,1830.9,10.18]
[1743273390279,0.40490969,1831.2,1830.8,5.767]
[1743273390520,4.13483944,1831.4,1830.9,15.64179]
[1743273390738,9.59473944,1831.6,1831.1,5.461]
[1743273390939,3.0,1831.5,1831.2,15.946]
[1743273391237,5.4606,1831.3,1831.2,10.18]
[1743273391394,5.46001,1831.5,1831.2,10.18]
[1743273391831,8.46035,1831.4,1831.2,10.18]
[1743273391995,5.4606,1831.3,1831.2,10.18]
[1743273392339,8.4606,1831.3,1831.2,10.18]
[1743273392642,3.0,1831.3,1831.2,10.18]
[1743273392797,8.4606,1831.3,1831.2,10.18]
[1743273393415,3.0,1831.3,1831.2,10.18]
[1743273394335,8.4606,1831.3,1831.2,10.18]
[1743273394634,8.89420678,1831.3,1831.2,10.18]
[1743273395635,8.46089,1831.2,1831.1,10.18]
[1743273395837,5.46132,1831.1,1830.9,10.18]
[1743273396042,9.59632944,1831.0,1830.9,10.18]
[1743273396240,13.02993622,1831.0,1830.9,10.18]
[1743273396611,13.02993622,1831.0,1830.7,10.18]
[1743273396612,5.46192,1830.9,1830.7,10.18]
[1743273396814,5.46192,1830.9,1830.7,17.04041]
[1743273396815,5.46209,1830.8,1830.7,17.04041]
[1743273397148,3.0,1830.7,1830.5,10.18]
[1743273397310,7.13483944,1830.9,1830.5,10.18]
[1743273397514,0.43285934,1830.8,1830.5,15.6429]
[1743273397713,5.46211,1830.8,1830.5,10.18]
[1743273397916,0.43285934,1830.7,1830.5,10.18]
[1743273398113,0.43285934,1830.7,1830.5,12.320627]
[1743273398326,5.46213,1830.8,1830.5,12.320627]
[1743273398510,5.89524934,1830.7,1830.5,10.18]
[1743273398712,5.46268,1830.6,1830.5,10.18]
[1743273398948,5.89429335,1830.6,1830.5,10.18]
[1743273399313,5.46298,1830.5,1830.4,10.18]
[1743273399521,5.46328,1830.4,1830.3,10.18]
[1743273399942,5.89469395,1830.4,1830.3,10.18]
[1743273400914,0.43141395,1830.4,1830.3,11.198]
[1743273401119,5.46317,1830.5,1830.3,11.198]
[1743273401429,0.43141395,1830.4,1830.3,11.198]
[1743273401742,8.46282,1830.6,1830.3,11.198]
[1743273402063,0.43141395,1830.5,1830.4,5.51790732]
[1743273402259,0.43141395,1830.5,1830.4,8.33581673]
[1743273402562,3.0,1830.8,1830.5,5.46284]
[1743273403857,8.4623,1830.8,1830.4,8.33581673]
[1743273404020,5.46258,1830.7,1830.5,5.762]
[1743273404928,10.92524,1830.7,1830.5,5.762]
[1743273405115,5.46293,1830.6,1830.4,10.18]
[1743273405317,9.59781944,1830.5,1830.4,10.18]
[1743273405518,10.01695339,1830.5,1830.4,10.18]
[1743273407763,13.01695339,1830.5,1830.4,10.18]
[1743273408067,14.801746,1830.5,1830.4,10.18]
[1743273408229,13.01695339,1830.5,1830.4,10.18]
[1743273409522,13.39966668,1830.5,1830.4,10.18]
[1743273410219,5.46374,1830.3,1830.1,15.941]
[1743273410978,0.38096114,1830.2,1830.1,10.18]
[1743273411483,5.84506114,1830.2,1829.9,0.7841]
[1743273411682,5.4643,1830.1,1829.9,16.7241]
[1743273412084,0.38046042,1830.0,1829.9,10.18]
[1743273412586,0.38046042,1830.0,1829.9,18.01007]
[1743273412784,5.86648582,1831.0,1830.6,5.4626]
[1743273412948,5.46152,1831.0,1830.6,15.94]
[1743273413145,5.46221,1830.8,1830.6,10.18]
[1743273413385,5.46184,1830.9,1830.6,15.94]
[1743273413991,5.46213,1830.8,1830.6,15.94]
[1743273414189,5.46239,1830.7,1830.6,10.18]
[1743273415284,9.59696944,1830.8,1830.6,10.18]
[1743273415486,5.46213,1830.8,1830.6,10.18]
[1743273415679,5.46239,1830.7,1830.6,10.18]
[1743273415994,5.46213,1830.8,1830.6,10.18]
[1743273416189,5.46241,1830.7,1830.4,15.94]
[1743273417281,8.46187,1830.9,1830.5,5.46292]
[1743273417468,8.46187,1830.9,1830.5,5.46285]
[1743273417674,13.92387,1830.9,1830.5,5.46285]
[1743273418487,3.0,1830.9,1830.5,5.46276]
[1743273418697,8.46189,1830.9,1830.5,5.46276]
[1743273418860,5.4622,1830.8,1830.5,2.9629805]
[1743273419063,8.46189,1830.9,1830.5,8.4258405]
[1743273419259,8.46189,1830.9,1829.9,7.05872]
[1743273419260,5.4639,1830.2,1830.0,10.9512]
[1743273419566,5.4639,1830.2,1829.8,11.22379]
[1743273419567,8.46418,1830.1,1829.9,10.18]
[1743273420492,0.28673468,1830.0,1829.9,10.18]
[1743273421167,0.28673468,1830.0,1829.8,6.5302]
[1743273421168,5.46477,1829.9,1829.8,10.18]
[1743273421481,5.46448,1830.0,1829.8,10.18]
[1743273421861,5.7479375,1829.9,1829.8,10.18]
[1743273423262,9.88277694,1829.9,1829.8,10.18]
[1743273423461,5.46597,1829.5,1829.4,10.18]
[1743273423663,9.60055944,1829.6,1829.4,10.18]
[1743273423898,5.74692591,1829.5,1829.4,10.18]
[1743273424565,0.28095591,1829.5,1829.4,10.18]
[1743273424768,5.74692591,1829.5,1829.4,10.18]
[1743273425609,5.46683,1829.3,1829.1,15.939]
[1743273426119,0.28065428,1829.2,1829.1,15.939]
[1743273426322,0.28065428,1829.2,1829.1,10.18]
[1743273427416,5.74752428,1829.2,1829.1,10.18]
[1743273427722,6.74578,1829.1,1828.7,0.803]
[1743273427922,4.13483944,1828.8,1828.7,10.18]
[1743273428091,9.60289944,1828.8,1828.7,10.18]
[1743273428619,5.46841,1828.7,1828.4,0.803]
[1743273428783,5.74506903,1828.6,1828.4,10.983]
[1743273429219,5.46976,1828.3,1828.1,0.05]
[1743273429399,5.46811,1828.8,1828.1,15.7547475]
[1743273429400,0.27180212,1828.2,1828.1,15.7547475]
[1743273429594,5.46868,1828.6,1828.1,21.9731]
[1743273429921,0.27180212,1828.5,1828.2,5.46977]
[1743273430121,0.6893433,1828.5,1828.2,5.46977]
[1743273430304,6.1583733,1828.5,1828.2,2.197282]
[1743273430504,0.6893433,1828.5,1828.2,2.197282]
[1743273430822,0.6893433,1828.5,1828.2,7.667012]
[1743273431021,6.1583133,1828.5,1828.2,7.667012]
[1743273431521,0.6893433,1828.5,1828.2,7.667002]
[1743273432922,0.6893433,1828.5,1828.1,11.033]
[1743273432923,6.1583333,1828.5,1828.1,11.033]
[1743273433113,5.46974,1828.3,1828.1,10.23]
[1743273433310,9.60431944,1828.4,1828.1,0.05]
[1743273433627,0.27180212,1828.3,1828.1,0.05]
[1743273433825,5.74156212,1828.3,1828.1,0.05]
[1743273434121,9.60469944,1828.2,1828.1,0.05]
[1743273434424,9.87262524,1828.2,1828.1,0.05]
[1743273435289,14.40686376,1828.2,1828.1,0.05]
[1743273435722,17.09767976,1828.2,1828.1,0.05]
[1743273436431,17.64767976,1828.2,1828.1,0.05]
[1743273436638,17.09767976,1828.2,1828.1,0.05]
[1743273436931,16.89230476,1828.2,1828.1,0.05]
[1743273437238,14.40686376,1828.2,1828.1,0.05]
[1743273437410,18.34150476,1828.2,1828.1,0.05]
[1743273439219,16.25726624,1828.2,1828.1,0.05]
[1743273439405,12.87262524,1828.2,1828.1,0.05]
[1743273439737,15.40697424,1828.2,1828.1,0.05]
[1743273439913,15.95697424,1828.2,1828.1,0.05]
[1743273440501,15.84131624,1828.2,1828.1,0.05]
[1743273440715,13.42262524,1828.2,1828.1,0.05]
[1743273440915,15.67744124,1828.2,1828.1,0.05]
[1743273445243,12.87262524,1828.2,1828.1,0.05]
[1743273447352,18.25994124,1828.2,1828.1,0.05]
[1743273448921,13.42262524,1828.2,1828.1,0.05]
[1743273449127,18.26702324,1828.2,1828.1,0.05]
[1743273449344,17.71702324,1828.2,1828.1,0.05]
[1743273449524,12.87262524,1828.2,1828.1,0.05]
[1743273449843,17.01102324,1828.2,1828.1,0.05]
[1743273450147,17.56102324,1828.2,1828.1,0.05]
[1743273450840,13.42262524,1828.2,1828.1,0.05]
[1743273451059,17.38461324,1828.2,1828.1,0.05]
[1743273451360,12.87262524,1828.2,1828.1,0.05]
[1743273451719,15.14494824,1828.2,1828.1,0.05]
[1743273451955,12.87262524,1828.2,1828.1,0.05]
[1743273452559,15.22394824,1828.2,1828.1,0.05]
[1743273454654,15.77394824,1828.2,1828.1,0.05]
[1743273455016,15.54141113,1828.2,1828.1,0.05]
[1743273460367,14.99141113,1828.2,1828.1,0.05]
[1743273460577,12.64008813,1828.2,1828.1,0.05]
[1743273461434,4.17022813,1828.2,1828.1,5.52016]
[1743273461641,0.2679258,1828.2,1828.1,6.151406]
[1743273462581,0.2679258,1828.2,1828.1,6.99840366]
[1743273462878,3.90230233,1828.5,1828.3,5.46929]
[1743273463083,3.90230233,1828.5,1828.3,16.70168]
[1743273463266,6.90230233,1828.5,1828.4,1.670168]
[1743273464937,5.46956,1828.3,1828.2,0.7923]
[1743273465137,6.90230233,1828.3,1828.2,0.7923]
[1743273466073,6.90230233,1828.3,1828.1,0.05]
[1743273466862,12.37189233,1828.3,1828.1,0.05]
[1743273467738,6.90230233,1828.3,1828.1,0.05]
[1743273467968,12.37189233,1828.3,1828.1,0.05]
[1743273468173,8.46986,1828.2,1828.1,0.05]
[1743273468358,3.0,1828.2,1828.1,0.05]
[1743273469060,8.46986,1828.2,1828.1,0.05]
[1743273469584,8.68322101,1828.2,1828.1,0.05]
[1743273470264,3.21336101,1828.2,1828.1,0.05]
[1743273470569,0.21336101,1828.2,1828.1,5.52016]
[1743273470882,3.21336101,1828.2,1828.1,6.698447]
[1743273472553,3.21336101,1828.2,1828.1,12.459447]
[1743273472779,3.21336101,1828.2,1828.1,11.28116]
[1743273473701,3.21336101,1828.2,1828.1,5.52016]
[1743273473903,3.21336101,1828.2,1828.1,11.28116]
[1743273474204,3.21336101,1828.2,1828.1,5.811]
[1743273474410,0.21336101,1828.2,1828.1,22.25256]
[1743273474588,3.90230233,1828.5,1828.3,5.46939]
[1743273474796,3.90230233,1828.5,1828.4,0.7914]
[1743273475689,3.90230233,1828.5,1828.4,6.26066]
[1743273477404,7.3122494,1828.7,1828.5,5.46896]
[1743273477769,7.3122494,1828.7,1828.4,6.26044]
[1743273478385,12.7807494,1828.7,1828.4,0.7914]
[1743273478593,3.90230233,1828.7,1828.4,11.597494]
[1743273478904,3.90230233,1828.7,1828.5,11.22881]
[1743273479269,3.90230233,1828.7,1828.5,16.6976]
[1743273479690,3.90230233,1828.7,1828.5,11.22879]
[1743273479896,3.90230233,1828.7,1828.5,16.69754]
[1743273480116,3.90230233,1828.7,1828.5,19.5270434]
[1743273480311,3.90230233,1828.7,1828.5,14.0582534]
[1743273480612,5.46559,1829.7,1828.6,10.9384]
[1743273480814,4.11395487,1829.6,1829.5,6.22437]
[1743273481029,4.11395487,1829.6,1829.5,23.332433]
[1743273481202,2.73003659,1829.6,1829.5,23.332433]
[1743273481394,2.90016174,1829.6,1829.5,22.16337]
[1743273481814,1.39632417,1829.6,1829.5,22.16337]
[1743273482628,0.17012515,1829.6,1829.5,22.16337]
[1743273482788,3.0,1829.8,1829.7,5.46537]
[1743273482988,0.17012515,1829.8,1829.7,5.46537]
[1743273483223,0.55,1830.0,1829.7,5.46537]
[1743273483421,0.17012515,1829.9,1829.6,5.46559]
[1743273483804,0.17012515,1829.9,1829.8,5.46507]
[1743273484002,4.14030356,1830.1,1829.8,5.46507]
[1743273484202,3.17012515,1830.0,1829.8,5.46507]
[1743273484628,0.17012515,1830.0,1829.8,10.93002]
[1743273484813,3.0,1830.2,1829.8,10.93002]
[1743273485015,0.17012515,1830.1,1829.8,5.46495]
[1743273485207,8.87980275,1830.2,1829.8,5.46495]
[1743273485406,0.17012515,1830.1,1829.8,10.92982]
[1743273485586,4.14030356,1830.4,1829.8,1.092982]
[1743273485792,0.17012515,1830.3,1830.0,5.46439]
[1743273486013,3.17012515,1830.3,1830.0,10.92872]
[1743273486240,3.17012515,1830.3,1830.0,5.46431]
[1743273486439,0.40546764,1830.8,1830.7,5.46239]
[1743273486640,0.40546764,1830.8,1830.7,22.16699]
[1743273486838,0.40546764,1830.8,1830.7,16.40899]
[1743273487038,0.40546764,1830.8,1830.7,24.353147]
[1743273487428,1.22619902,1830.9,1830.8,6.22869]
[1743273487630,5.45915,1831.8,1831.3,5.46053]
[1743273487848,10.91845,1831.8,1831.4,5.46017]
[1743273488015,10.91848,1831.8,1831.3,5.46053]
[1743273488213,5.45988,1831.6,1831.1,5.46117]
[1743273488415,5.23215156,1831.7,1831.2,5.46087]
[1743273488625,3.0,1831.6,1831.2,5.46087]
[1743273489024,1.091848,1831.7,1831.4,5.46015]
[1743273489228,3.0,1831.6,1831.3,5.46042]
[1743273489446,3.0,1831.6,1831.3,10.92087]
[1743273490015,3.0,1831.6,1831.3,5.46042]
[1743273491156,3.0,1831.6,1831.2,6.22749]
[1743273491353,3.0,1831.6,1831.3,5.46051]
[1743273492114,3.0,1831.6,1831.2,6.22749]
[1743273492320,8.45984,1831.6,1831.2,6.22735]
[1743273493074,3.0,1831.6,1831.3,5.46055]
[1743273493223,3.0,1831.6,1831.4,5.46028]
[1743273493416,3.0,1831.6,1831.3,5.46055]
[1743273493617,3.0,1831.6,1831.3,10.92098]
[1743273493845,3.0,1831.6,1831.3,5.46043]
[1743273494046,0.15040307,1831.5,1831.3,5.46043]
[1743273496064,5.61056307,1831.5,1831.0,6.22783]
[1743273496268,5.61056307,1831.5,1830.7,2.187157]
[1743273496269,8.46137,1831.1,1830.7,6.22886]
[1743273496562,0.15095647,1831.0,1830.5,6.22949]
[1743273496760,3.0,1830.9,1830.5,5.46297]
[1743273496948,8.46192,1830.9,1830.5,5.46297]
[1743273497156,0.15493345,1830.8,1830.5,5.46297]
[1743273497556,5.46331,1830.4,1830.1,0.546431]
[1743273497735,0.55,1830.5,1830.1,0.546431]
[1743273498061,5.46333,1830.4,1830.1,0.546431]
[1743273498260,0.15251751,1830.3,1830.1,6.010541]
[1743273498462,5.46329,1830.4,1829.9,5.46449]
[1743273498634,0.15251751,1830.3,1829.9,10.92902]
[1743273499642,4.29282107,1830.3,1829.9,5.46449]
[1743273499862,9.75657107,1830.3,1829.9,5.46449]
[1743273500158,4.29282107,1830.3,1829.9,10.92908]
[1743273500362,4.29282107,1830.3,1830.0,1.092908]
[1743273500637,9.75641107,1830.3,1829.9,5.46449]
[1743273502160,5.46408,1830.2,1829.8,6.23167]
[1743273502349,5.46408,1830.2,1829.8,11.98267]
[1743273502553,5.46408,1830.2,1829.8,11.69657]
[1743273502754,0.15251751,1830.1,1829.8,11.69657]
[1743273503064,5.46408,1830.2,1829.9,1.169657]
[1743273503372,0.15251751,1830.1,1830.0,5.46419]
[1743273503734,4.14030356,1830.3,1830.0,5.46419]
[1743273503945,0.15251751,1830.1,1830.0,5.46419]
[1743273504167,4.14030356,1830.3,1829.9,6.634427]
[1743273504370,0.15095654,1830.1,1829.9,6.634427]
[1743273504542,4.14030356,1830.3,1830.0,6.1277727]
[1743273504739,4.14030356,1830.3,1830.0,0.6634427]
[1743273505141,9.60405356,1830.3,1830.0,0.6634427]
[1743273505755,5.4639,1830.2,1829.8,0.7666]
[1743273505965,5.4639,1830.2,1829.8,6.5176]
[1743273506271,5.4639,1830.2,1829.8,11.98263]
[1743273506565,5.46391,1830.2,1829.9,5.46465]
[1743273507176,4.14030356,1830.3,1830.0,15.64447]
[1743273507370,4.14030356,1830.3,1830.0,17.755392]
[1743273507569,5.46328,1830.4,1830.0,23.219672]
[1743273508168,5.46328,1830.4,1830.0,17.755202]
[1743273508582,3.0,1830.4,1830.1,5.46417]
[1743273508768,9.60285356,1830.7,1830.3,5.46357]
[1743273509083,5.4627,1830.6,1830.3,5.46357]
[1743273509241,5.4627,1830.6,1830.2,12.544237]
[1743273509441,3.0,1830.5,1830.2,12.544237]
[1743273510082,8.46302,1830.5,1830.2,7.080417]
[1743273510236,5.46338,1830.4,1830.0,13.063122]
[1743273510562,4.14030356,1830.3,1830.1,5.751]
[1743273511178,9.60393356,1830.3,1830.1,5.751]
[1743273511371,4.14030356,1830.3,1830.1,5.751]
[1743273511889,9.60389356,1830.3,1830.0,18.813122]
[1743273512077,15.06766356,1830.3,1830.0,18.813122]
[1743273512284,9.60389356,1830.3,1830.0,18.813122]
[1743273512794,4.14030356,1830.3,1830.0,24.277542]
[1743273512997,9.60362356,1830.4,1830.1,7.8919242]
[1743273513484,4.14030356,1830.4,1830.2,5.46379]
[1743273514591,0.13372087,1830.3,1830.2,10.92754]
[1743273514793,0.13372087,1830.3,1830.2,5.46375]
[1743273514967,3.0,1830.5,1830.2,5.46375]
[1743273515308,3.0,1830.5,1830.2,6.79931542]
[1743273515606,0.13372087,1830.4,1830.3,5.46357]
[1743273516305,0.13372087,1830.4,1830.3,6.32339938]
[1743273516601,9.60162356,1831.1,1830.7,6.26731]
[1743273516773,9.60162356,1831.1,1830.7,16.44731]
[1743273517093,3.0,1831.0,1830.8,1.644731]
[1743273517463,3.0,1831.0,1830.8,7.106551]
[1743273517668,3.0,1831.0,1830.8,7.106711]
[1743273518466,3.0,1831.0,1830.9,5.46179]
[1743273518666,4.14030356,1831.3,1830.9,5.46168]
[1743273518867,4.14030356,1831.3,1831.0,6.007538]
[1743273519112,9.60092356,1831.3,1831.0,0.546168]
[1743273519397,4.14030356,1831.1,1830.8,12.568691]
[1743273519695,4.14030356,1831.1,1830.8,7.106631]
[1743273519897,4.14030356,1831.1,1830.8,12.568521]
[1743273520094,4.14030356,1831.1,1830.9,5.46175]
[1743273520298,7.14030356,1831.1,1831.0,0.546175]
[1743273520903,12.60149356,1831.1,1831.0,0.546175]
[1743273521064,12.60149356,1831.1,1830.8,1.644731]
[1743273521267,5.46209,1830.8,1830.7,10.18]
[1743273521706,10.92438,1830.8,1830.6,15.929]
[1743273522009,4.14030356,1830.7,1830.4,10.18]
[1743273522592,9.60284356,1830.7,1830.4,10.18]
[1743273522797,3.0,1830.6,1830.4,10.18]
[1743273522986,3.0,1830.6,1830.4,12.319258]
[1743273523185,3.0,1830.6,1830.4,17.782478]
[1743273523381,3.0,1830.6,1830.4,12.319258]
[1743273523612,3.0,1830.6,1830.5,5.46298]
[1743273524023,3.0,1830.6,1830.4,17.782248]
[1743273524183,3.0,1830.6,1830.5,1.7782248]
[1743273524382,3.0,1830.6,1830.5,7.2412048]
[1743273524685,3.0,1830.6,1830.5,1.7782248]
[1743273527010,6.89091129,1830.6,1830.5,1.7782248]
[1743273527613,6.89091129,1830.6,1830.5,11.9582248]
[1743273527810,12.35359129,1830.6,1830.5,10.18]
[1743273528321,8.46388,1830.2,1830.1,10.18]
[1743273528491,3.0,1830.2,1830.0,10.18]
[1743273528811,3.89091129,1830.1,1830.0,10.18]
[1743273529119,5.46448,1830.0,1829.9,10.18]
[1743273529615,5.60167527,1830.0,1829.9,10.18]
[1743273530434,0.13719527,1830.0,1829.9,10.18]
[1743273531990,0.13719527,1830.0,1829.9,15.64477]
[1743273532191,0.13719527,1830.0,1829.9,17.755752]
[1743273532515,3.0,1830.2,1829.9,23.220522]
[1743273532715,4.27755215,1830.1,1829.9,12.290982]
[1743273532917,9.74192215,1830.1,1829.9,10.18]
[1743273533503,12.74192215,1830.1,1830.0,10.18]
[1743273535198,7.27755215,1830.1,1830.0,10.18]
[1743273535403,12.74173215,1830.1,1830.0,10.18]
[1743273539337,12.74173215,1830.1,1829.9,10.18]
[1743273539529,12.74173215,1830.1,1829.9,11.198]
[1743273539731,5.46448,1830.0,1829.9,11.198]
[1743273539927,5.46448,1830.0,1829.9,10.18]
[1743273540135,5.5865961,1830.0,1829.9,10.18]
[1743273540294,8.5865961,1830.0,1829.9,10.18]
[1743273541629,3.1221161,1830.0,1829.9,10.18]
[1743273543513,5.46507,1829.8,1829.7,10.18]
[1743273543711,15.18824946,1829.8,1829.5,16.6926]
[1743273544010,9.72295946,1829.8,1829.5,18.908486]
[1743273544513,15.864978,1829.5,1829.3,0.7979]
[1743273544769,20.98357857,1829.4,1829.1,10.18]
[1743273545047,4.14035688,1829.2,1829.1,10.18]
[1743273545225,3.0,1829.3,1829.1,10.18]
[1743273545412,0.11491212,1829.2,1829.1,10.18]
[1743273545614,0.11491212,1829.2,1829.1,11.27779]
[1743273549454,0.11491212,1829.2,1829.1,10.18]
[1743273550853,0.11491212,1829.2,1829.1,15.64716]
[1743273551031,8.46603,1829.5,1829.1,15.64716]
[1743273551231,0.11491212,1829.4,1829.1,15.64716]
[1743273551844,4.255269,1829.4,1829.1,10.18]
[1743273552045,13.93348,1829.3,1829.1,10.18]
[1743273552480,0.11491212,1829.2,1829.1,10.18]
[1743273552777,12.722139,1829.2,1829.1,10.18]
[1743273552976,12.47941274,1829.2,1829.1,10.18]
[1743273553528,14.96722274,1829.2,1829.1,10.18]
[1743273554039,7.01254274,1829.2,1829.1,10.18]
[1743273554251,6.89763062,1829.2,1829.1,11.744719]
[1743273555057,6.89763062,1829.2,1829.1,10.18]
[1743273557762,20.35559362,1829.2,1829.1,10.18]
[1743273558064,18.05547162,1829.2,1829.1,10.18]
[1743273558759,12.36450062,1829.2,1829.1,10.18]
[1743273558966,16.45337762,1829.2,1829.1,10.18]
[1743273559964,5.46754,1829.0,1828.8,10.9779]
[1743273560161,19.72875362,1828.9,1828.8,10.18]
[1743273560363,21.79544762,1828.9,1828.8,10.18]
[1743273560544,21.14080562,1828.9,1828.8,10.18]
[1743273560937,12.36539062,1828.9,1828.8,10.18]
[1743273561260,18.02502362,1828.9,1828.8,10.18]
[1743273561763,12.36539062,1828.9,1828.8,10.18]
[1743273561964,19.02073362,1828.9,1828.8,10.18]
[1743273562467,12.36539062,1828.9,1828.8,10.18]
[1743273562664,6.89763062,1828.9,1828.8,11.198]
[1743273564271,6.89763062,1828.9,1828.8,10.18]
[1743273564968,15.32135962,1828.9,1828.8,10.18]
[1743273565168,12.36539062,1828.9,1828.8,10.18]
[1743273565640,12.36539062,1828.9,1828.6,10.9595]
[1743273565641,3.0,1828.8,1828.6,10.9595]
[1743273566041,3.89763062,1828.7,1828.6,10.9595]
[1743273568081,3.89763062,1828.7,1828.6,10.18]
[1743273568375,3.0,1828.6,1828.5,10.18]
[1743273568584,3.0,1828.6,1828.5,12.397475]
[1743273569543,3.0,1828.6,1828.5,17.866435]
[1743273569748,3.89763062,1828.7,1828.5,17.866435]
[1743273571582,3.89763062,1828.7,1828.6,10.18]
[1743273572554,3.89763062,1829.1,1829.0,5.46735]
[1743273572750,3.89763062,1829.3,1829.1,6.2464]
[1743273572983,6.6197708,1829.5,1829.2,5.46662]
[1743273573282,3.89763062,1829.5,1829.2,21.1133]
[1743273573479,3.0,1829.4,1829.3,7.57768]
[1743273573667,3.89763062,1829.5,1829.3,2.11133]
[1743273574082,3.0,1829.4,1829.3,2.11133]
[1743273575384,3.0,1829.4,1829.3,7.5779]
[1743273575902,3.0,1829.4,1829.3,2.11133]
[1743273576783,3.0,1829.4,1829.3,7.5779]
[1743273577101,0.28341799,1830.3,1829.5,5.46586]
[1743273577404,3.89763062,1830.0,1829.8,5.46507]
[1743273577602,3.89763062,1830.0,1829.7,6.21519]
[1743273578584,3.89763062,1829.8,1829.7,6.21519]
[1743273578760,3.89763062,1829.8,1829.7,16.39519]
[1743273578966,15.65058962,1829.8,1829.7,10.18]
[1743273579781,10.18551962,1829.8,1829.7,10.18]
[1743273579981,6.89763062,1829.8,1829.7,10.18]
[1743273583284,3.0,1829.7,1829.6,10.18]
[1743273585504,8.46537,1829.7,1829.6,10.18]
[1743273585654,10.24819406,1829.7,1829.6,10.18]
[1743273585859,17.90789806,1829.7,1829.6,10.18]
[1743273586062,9.01537,1829.7,1829.6,10.18]
[1743273586295,3.89763062,1829.7,1829.6,10.18]
[1743273588402,9.36300062,1829.7,1829.6,10.18]
[1743273589290,8.46567,1829.6,1829.5,10.18]
[1743273589663,8.46567,1829.6,1829.0,1.361035]
[1743273589664,3.0,1829.3,1829.0,21.92905]
[1743273589892,3.89763062,1829.2,1829.1,10.18]
[1743273590192,9.63203062,1829.2,1829.1,10.18]
[1743273590408,6.89763062,1829.2,1829.1,10.18]
[1743273591511,12.36450062,1829.2,1829.1,10.18]
[1743273592004,3.0,1829.7,1829.2,6.28104]
[1743273592192,3.0,1829.5,1829.2,16.46104]
[1743273592362,3.89763062,1829.4,1829.2,16.46104]
[1743273592564,3.89763062,1829.4,1829.2,18.653859]
[1743273594781,3.89763062,1829.4,1829.2,13.187119]
[1743273594978,3.89763062,1829.4,1829.2,24.120529]
[1743273595188,3.0,1829.5,1829.3,5.46642]
[1743273596863,3.0,1829.5,1829.3,10.93279]
[1743273597087,3.0,1829.5,1829.4,5.46627]
[1743273597766,3.0,1829.5,1829.3,8.4523609]
[1743273597966,3.0,1829.5,1829.4,10.18]
[1743273600182,3.0,1829.5,1829.4,15.64627]
[1743273600464,3.89763062,1830.0,1829.7,5.46529]
[1743273600689,3.89763062,1830.0,1829.7,15.64529]
[1743273600885,3.0,1829.9,1829.7,18.330385]
[1743273601226,3.89763062,1830.0,1829.7,18.330385]
[1743273601373,3.0,1829.9,1829.7,18.330385]
[1743273601872,3.89763062,1829.8,1829.7,12.865095]
[1743273602074,9.36270062,1829.8,1829.7,10.18]
[1743273602796,12.11506262,1829.8,1829.7,10.18]
[1743273603096,9.36270062,1829.8,1829.7,10.18]
[1743273603298,12.88553962,1829.8,1829.7,10.18]
[1743273603862,9.36270062,1829.8,1829.5,10.18]
[1743273604192,3.89763062,1829.6,1829.5,10.18]
[1743273605284,9.36330062,1829.6,1829.5,10.18]
[1743273606248,3.89763062,1829.6,1829.5,10.18]
[1743273606423,3.89763062,1829.8,1829.5,16.66367]
[1743273607137,3.89763062,1830.0,1829.9,5.46477]
[1743273607292,3.89763062,1830.2,1829.9,5.46463]
[1743273607884,2.46e-06,1830.6,1830.3,0.8226]
[1743273608116,0.4326019,1831.6,1831.1,0.8226]
[1743273608434,3.89763062,1831.5,1831.3,5.46046]
[1743273608632,5.74413655,1832.1,1831.5,5.45994]
[1743273608633,3.89763062,1831.7,1831.5,5.45994]
[1743273608787,3.89763062,1831.7,1831.5,10.18]
[1743273609139,8.4597,1831.6,1831.5,10.18]
[1743273609303,6.89763062,1831.6,1831.5,10.18]
[1743273609692,3.89763062,1831.6,1831.5,10.18]
[1743273610091,10.29304368,1831.6,1831.5,10.18]
[1743273610489,13.29304368,1831.6,1831.5,10.18]
[1743273610933,13.52922997,1831.6,1831.5,10.18]
[1743273611085,16.27155182,1831.6,1831.5,10.18]
[1743273611288,10.64072882,1831.6,1831.5,10.18]
[1743273611625,13.64072882,1831.6,1831.5,10.18]
[1743273611827,12.70501576,1831.6,1831.5,10.18]
[1743273612132,15.30937376,1831.6,1831.5,10.18]